{"text_format":"3","workbook":"xlsx","n_sheets":2,"sheets":["Atbilžu žurnāls","Atbilžu kopsavilkums"],"not_rendered":{"charts":2,"defined_names":22},"read":"whole","date_system":"1900"}

{"sheet":"Atbilžu žurnāls","index":0,"n_rows":15,"n_cols":15,"rows_kept":15,"merged":[[0,3,0,4],[0,5,0,7],[1,3,1,14]]}
[{"$nulls":5},"ATBILŽU KOPSAVILKUMS"]
[null,"KĀZU DATUMS",null,"kāzu ielūguma žurnāls"]
[null,{"$f":"TODAY()+283","v":"2019-06-24"},null,"VIESA VĀRDS","NOSŪTĪTS?","LŪDZU ATBILDĒT","BALLĪTE","VIESIS","SAISTĪBA","ADRESE","PILSĒTA","Novads","Pasta indekss","TĀLRUNIS","KONTAKTPERSONAS E-PASTA ADRESE"]
[null,"ATLIKUŠĀS DIENAS",null,"1. vārds","Jā","Jā",1,"Topošais laulātais 1","Brālis","Adrese","Pilsēta","Novads","Pasta indekss","Tālrunis","persona@example.com"]
[null,{"$f":"Atlikušās_dienas","v":283},null,"2. nosaukums","Jā","Nē",3,"Topošais laulātais 1","Draugs","Adrese","Pilsēta","Novads","Pasta indekss","Tālrunis","persona@example.com"]
[null,"IERODAS",null,"3. vārds","Jā","Jā",1,"Cits","Draugs","Adrese","Pilsēta","Novads","Pasta indekss","Tālrunis","persona@example.com"]
[null,{"$f":"TotalAttending","v":12},null,"4. vārds","Jā","Nē",2,"Topošais laulātais 2","Draugs","Adrese","Pilsēta","Novads","Pasta indekss","Tālrunis","persona@example.com"]
[null,"NEIERODAS",null,"5. vārds","Jā","Jā",2,"Topošais laulātais 2","Draugs","Adrese","Pilsēta","Novads","Pasta indekss","Tālrunis","persona@example.com"]
[null,{"$f":"TotalNotAttending","v":6},null,"6. vārds","Jā","Varbūt",null,"Cits","Draugs","Adrese","Pilsēta","Novads","Pasta indekss","Tālrunis","persona@example.com"]
[null,"NAV ATBILDES",null,"7. vārds","Jā","Jā",2,"Topošais laulātais 2","Draugs","Adrese","Pilsēta","Novads","Pasta indekss","Tālrunis","persona@example.com"]
[null,{"$f":"Nesaņemtās_atbildes","v":1},null,"8. vārds","Jā","Nē",1,"Cits","Draugs","Adrese","Pilsēta","Novads","Pasta indekss","Tālrunis","persona@example.com"]
[{"$nulls":3},"9. vārds","Jā","Jā",4,"Topošais laulātais 1","Draugs","Adrese","Pilsēta","Novads","Pasta indekss","Tālrunis","persona@example.com"]
[{"$nulls":3},"10. vārds","Jā","Jā",2,"Topošais laulātais 1","Draugs","Adrese","Pilsēta","Novads","Pasta indekss","Tālrunis","persona@example.com"]
[{"$nulls":3},"11. vārds","Jā",null,null,"Topošais laulātais 2","Brālis","Adrese","Pilsēta","Novads","Pasta indekss","Tālrunis","persona@example.com"]
[{"$nulls":3},"KOPSUMMAS:",{"$f":"COUNTIF('Atbilžu žurnāls'!$E$4:$E$14,\"Jā\")","v":11},{"$f":"COUNTA('Atbilžu žurnāls'!$F$4:$F$14)","v":10},{"$f":"SUBTOTAL(109,tblInvites[BALLĪTE])","v":18}]

{"sheet":"Atbilžu kopsavilkums","index":1,"n_rows":11,"n_cols":15,"rows_kept":11,"merged":[[0,3,0,4],[0,5,0,8],[1,3,1,11],[2,3,6,3],[2,4,6,4],[7,3,11,3],[7,4,11,4]]}
[{"$nulls":3},"ATBILŽU ŽURNĀLS"]
[null,"KĀZU DATUMS",null,"atbilžu kopsavilkums",{"$nulls":10},"piezīmes"]
[null,{"$f":"WeddingDate","v":"2019-06-24"},null,"JĀ","Sagrupētu joslu diagramma, kurā attēloti viesu tipi ar atbildi Jā, ir šajā šūnā."]
[null,"ATLIKUŠĀS DIENAS",{"$nulls":3},"CITS",{"$f":"IFERROR(SUMIFS(tblInvites[BALLĪTE],tblInvites[VIESIS],\"=Cits\",tblInvites[LŪDZU ATBILDĒT],\"Jā\"),0)","v":1},{"$f":"tblInvites[[#Totals],[NOSŪTĪTS?]]","v":11}]
[null,{"$f":"Atlikušās_dienas","v":283},{"$nulls":3},"TOPOŠAIS LAULĀTAIS 2",{"$f":"IFERROR(SUMIFS(tblInvites[BALLĪTE],tblInvites[VIESIS],\"=Topošais laulātais 2\",tblInvites[LŪDZU ATBILDĒT],\"Jā\"),0)","v":4},{"$f":"tblInvites[[#Totals],[NOSŪTĪTS?]]","v":11}]
[null,"IERODAS",{"$nulls":3},"TOPOŠAIS LAULĀTAIS 1",{"$f":"IFERROR(SUMIFS(tblInvites[BALLĪTE],tblInvites[VIESIS],\"=Topošais laulātais 1\",tblInvites[LŪDZU ATBILDĒT],\"Jā\"),0)","v":7},{"$f":"tblInvites[[#Totals],[NOSŪTĪTS?]]","v":11}]
[null,{"$f":"TotalAttending","v":12}]
[null,"NEIERODAS",null,"NĒ","Sagrupētu joslu diagramma, kurā attēloti viesu tipi ar atbildi Nē, ir šajā šūnā."]
[null,{"$f":"TotalNotAttending","v":6},{"$nulls":3},"CITS",{"$f":"IFERROR(SUMIFS(tblInvites[BALLĪTE],tblInvites[VIESIS],\"=Cits\",tblInvites[LŪDZU ATBILDĒT],\"Nē\"),0)","v":1},{"$f":"tblInvites[[#Totals],[NOSŪTĪTS?]]","v":11}]
[null,"NAV ATBILDES",{"$nulls":3},"TOPOŠAIS LAULĀTAIS 2",{"$f":"IFERROR(SUMIFS(tblInvites[BALLĪTE],tblInvites[VIESIS],\"=Topošais laulātais 2\",tblInvites[LŪDZU ATBILDĒT],\"Nē\"),0)","v":2},{"$f":"tblInvites[[#Totals],[NOSŪTĪTS?]]","v":11}]
[null,{"$f":"Nesaņemtās_atbildes","v":1},{"$nulls":3},"TOPOŠAIS LAULĀTAIS 1",{"$f":"IFERROR(SUMIFS(tblInvites[BALLĪTE],tblInvites[VIESIS],\"=Topošais laulātais 1\",tblInvites[LŪDZU ATBILDĒT],\"Nē\"),0)","v":3},{"$f":"tblInvites[[#Totals],[NOSŪTĪTS?]]","v":11}]